[Event "*** Titled Tuesday Blitz"]
[Site "Chess.com"]
[Date "2018.06.05"]
[Round "3"]
[White "Last7Samurai"]
[Black "Paralinch"]
[Result "0-1"]
[WhiteElo "2695"]
[BlackElo "2832"]
[TimeControl "180+2"]
[EndTime "13:44:17 PDT"]
[Termination "Paralinch won by resignation"]

1. e4 {[%clk 0:03:01.9]} 1... c6 {[%clk 0:03:00.9]} 2. Nf3 {[%clk 0:03:02.5]}
2... d5 {[%clk 0:03:02.1]} 3. exd5 {[%clk 0:03:04.4]} 3... cxd5 {[%clk
0:03:03.2]} 4. Ne5 {[%clk 0:03:06]} 4... Nf6 {[%clk 0:03:01.7]} 5. d4 {[%clk
0:03:07]} 5... g6 {[%clk 0:03:01.9]} 6. c3 {[%clk 0:03:06.9]} 6... Bg7 {[%clk
0:03:02.5]} 7. h3 {[%clk 0:03:07.2]} 7... O-O {[%clk 0:03:02.1]} 8. Bf4 {[%clk
0:03:08.7]} 8... Nc6 {[%clk 0:02:57.8]} 9. Bd3 {[%clk 0:03:06.1]} 9... Nd7
{[%clk 0:02:54.9]} 10. Nxd7 {[%clk 0:02:58.5]} 10... Bxd7 {[%clk 0:02:55.2]} 11.
O-O {[%clk 0:03:00.3]} 11... e5 {[%clk 0:02:48.9]} 12. dxe5 {[%clk 0:03:02.2]}
12... Nxe5 {[%clk 0:02:50.3]} 13. Be2 {[%clk 0:03:01.2]} 13... Be6 {[%clk
0:02:47.9]} 14. Nd2 {[%clk 0:02:59.3]} 14... Qb6 {[%clk 0:02:45.5]} 15. Nb3
{[%clk 0:02:59.7]} 15... Nc4 {[%clk 0:02:44.3]} 16. Qc1 {[%clk 0:02:44.8]} 16...
Rac8 {[%clk 0:02:43.4]} 17. Re1 {[%clk 0:02:38.3]} 17... a5 {[%clk 0:02:38.8]}
18. Bxc4 {[%clk 0:02:32.6]} 18... dxc4 {[%clk 0:02:32.4]} 19. Nd4 {[%clk
0:02:32.7]} 19... Rfe8 {[%clk 0:02:24.3]} 20. Nxe6 {[%clk 0:02:27.1]} 20... Rxe6
{[%clk 0:02:25.3]} 21. Rxe6 {[%clk 0:02:27.9]} 21... Qxe6 {[%clk 0:02:23.9]} 22.
Qd2 {[%clk 0:02:27.9]} 22... Re8 {[%clk 0:02:15.3]} 23. Rd1 {[%clk 0:02:24.3]}
23... h5 {[%clk 0:02:12.9]} 24. Be3 {[%clk 0:02:24]} 24... b5 {[%clk 0:02:09.6]}
25. Qd5 {[%clk 0:02:21.1]} 25... b4 {[%clk 0:02:06.7]} 26. Qxa5 {[%clk
0:02:11.4]} 26... bxc3 {[%clk 0:02:05.7]} 27. bxc3 {[%clk 0:02:13.3]} 27... Kh7
{[%clk 0:01:51]} 28. a4 {[%clk 0:02:06.3]} 28... Qe4 {[%clk 0:01:41.6]} 29. Qd5
{[%clk 0:01:41.8]} 29... Qxd5 {[%clk 0:01:20.7]} 30. Rxd5 {[%clk 0:01:43.7]}
30... Ra8 {[%clk 0:01:21.9]} 31. a5 {[%clk 0:01:39.8]} 31... Bxc3 {[%clk
0:01:22]} 32. Rc5 {[%clk 0:01:40.3]} 32... Rxa5 {[%clk 0:01:16.7]} 33. Rxc4
{[%clk 0:01:40.8]} 33... Be5 {[%clk 0:01:18]} 34. g3 {[%clk 0:01:38.6]} 34...
Rd5 {[%clk 0:01:13.4]} 35. Kg2 {[%clk 0:01:38.5]} 35... Kg7 {[%clk 0:01:13.9]}
36. h4 {[%clk 0:01:39.1]} 36... Bf6 {[%clk 0:01:12.9]} 37. Bf4 {[%clk
0:01:33.9]} 37... Rd4 {[%clk 0:01:10]} 38. Rxd4 {[%clk 0:01:34.2]} 38... Bxd4
{[%clk 0:01:11.1]} 39. f3 {[%clk 0:01:35.4]} 39... Kf6 {[%clk 0:01:07.9]} 40. g4
{[%clk 0:01:35.2]} 40... Ke6 {[%clk 0:01:08.7]} 41. Bd2 {[%clk 0:01:34.7]} 41...
Bf6 {[%clk 0:01:07]} 42. Kg3 {[%clk 0:01:34.5]} 42... Be5+ {[%clk 0:01:08.2]}
43. f4 {[%clk 0:01:30]} 43... Bd6 {[%clk 0:01:02.8]} 44. Kf3 {[%clk 0:01:24.4]}
44... f5 {[%clk 0:00:55.1]} 45. g5 {[%clk 0:01:21.9]} 45... Kd5 {[%clk
0:00:55.7]} 46. Be3 {[%clk 0:01:22.5]} 46... Kc4 {[%clk 0:00:56.2]} 47. Bc1
{[%clk 0:01:13.4]} 47... Kd3 {[%clk 0:00:55.6]} 48. Be3 {[%clk 0:01:11.2]} 48...
Bb4 {[%clk 0:00:56.4]} 49. Bf2 {[%clk 0:01:12.2]} 49... Bd2 {[%clk 0:00:57.5]}
50. Bg3 {[%clk 0:01:11.7]} 50... Be3 {[%clk 0:00:58.6]} 51. Be1 {[%clk
0:01:12.3]} 51... Bd4 {[%clk 0:00:59.8]} 52. Bg3 {[%clk 0:01:13.1]} 52... Kd2
{[%clk 0:01:01]} 53. Bh2 {[%clk 0:01:08.5]} 53... Ke1 {[%clk 0:00:58.6]} 54.
Bg3+ {[%clk 0:01:08.4]} 54... Kf1 {[%clk 0:00:59.7]} 55. Bf2 {[%clk 0:01:09.5]}
55... Bc3 {[%clk 0:00:57.3]} 56. Bg3 {[%clk 0:01:09]} 56... Kg1 {[%clk
0:00:55.8]} 57. Bf2+ {[%clk 0:01:03.1]} 57... Kh2 {[%clk 0:00:56.1]} 58. Bg3+
{[%clk 0:01:04.2]} 58... Kh3 {[%clk 0:00:54.2]} 59. Bf2 {[%clk 0:01:05.1]} 59...
Bd2 {[%clk 0:00:52.6]} 60. Bg3 {[%clk 0:01:04.6]} 60... Be3 {[%clk 0:00:51.8]}
61. Be1 {[%clk 0:01:01.9]} 61... Bg1 {[%clk 0:00:50.1]} 62. Bg3 {[%clk 0:01:00]}
62... Bc5 {[%clk 0:00:49.4]} 63. Be1 {[%clk 0:01:00.9]} 63... Bd4 {[%clk
0:00:46.8]} 64. Bg3 {[%clk 0:01:01.5]} 64... Bc3 {[%clk 0:00:46.5]} 65. Bf2
{[%clk 0:01:02.5]} 65... Bd2 {[%clk 0:00:45.2]} 66. Bg3 {[%clk 0:01:03]} 66...
Ba5 {[%clk 0:00:44.6]} 67. Bf2 {[%clk 0:01:02.8]} 67... Kh2 {[%clk 0:00:45.2]}
68. Bg3+ {[%clk 0:01:02.4]} 68... Kg1 {[%clk 0:00:46.1]} 69. Bf2+ {[%clk
0:01:02.9]} 69... Kf1 {[%clk 0:00:45.9]} 70. Bg3 {[%clk 0:00:54.5]} 70... Bd2
{[%clk 0:00:42.8]} 71. Bh2 {[%clk 0:00:15.3]} 71... Be1 {[%clk 0:00:41.8]} 72.
Ke3 {[%clk 0:00:08.7]} 72... Kg2 {[%clk 0:00:35.5]} 73. Kd4 {[%clk 0:00:10]}
73... Bxh4 {[%clk 0:00:22.2]} 74. Ke5 {[%clk 0:00:11.9]} 74... Bxg5 {[%clk
0:00:17.7]} 75. fxg5 {[%clk 0:00:13.8]} 75... Kxh2 {[%clk 0:00:17.7]} 76. Kf6
{[%clk 0:00:15.7]} 76... f4 {[%clk 0:00:19.2]} 77. Kxg6 {[%clk 0:00:17.6]} 77...
f3 {[%clk 0:00:20.8]} 78. Kxh5 {[%clk 0:00:17.7]} 78... f2 {[%clk 0:00:22.3]}
79. g6 {[%clk 0:00:19.6]} 79... f1=Q {[%clk 0:00:23.2]} 80. g7 {[%clk
0:00:21.2]} 80... Qf7+ {[%clk 0:00:23.2]} 81. Kh6 {[%clk 0:00:23.1]} 81... Qg8
{[%clk 0:00:24.1]} 0-1

[Event "*** Titled Tuesday Blitz"]
[Site "Chess.com"]
[Date "2018.06.05"]
[Round "3"]
[White "Abund"]
[Black "Arystanner23"]
[Result "0-1"]
[WhiteElo "2506"]
[BlackElo "2630"]
[TimeControl "180+2"]
[EndTime "13:44:45 PDT"]
[Termination "Arystanner23 won by resignation"]

1. Nf3 {[%clk 0:03:01.9]} 1... Nf6 {[%clk 0:03:00.9]} 2. c4 {[%clk 0:03:02.1]}
2... e6 {[%clk 0:03:02.3]} 3. Nc3 {[%clk 0:03:02.8]} 3... d5 {[%clk 0:03:03.3]}
4. d4 {[%clk 0:03:03.8]} 4... dxc4 {[%clk 0:03:04.3]} 5. e3 {[%clk 0:03:01.1]}
5... a6 {[%clk 0:03:05.2]} 6. Bxc4 {[%clk 0:03:01.4]} 6... b5 {[%clk 0:03:06.4]}
7. Bd3 {[%clk 0:03:02.6]} 7... Bb7 {[%clk 0:03:07.7]} 8. O-O {[%clk 0:03:02.6]}
8... Nbd7 {[%clk 0:03:08.9]} 9. a3 {[%clk 0:03:01.4]} 9... c5 {[%clk 0:03:10]}
10. Qe2 {[%clk 0:03:01.5]} 10... Be7 {[%clk 0:03:11.1]} 11. Rd1 {[%clk
0:03:01.2]} 11... Qb8 {[%clk 0:03:11.9]} 12. Bc2 {[%clk 0:02:56.3]} 12... O-O
{[%clk 0:03:11.6]} 13. e4 {[%clk 0:02:53.4]} 13... cxd4 {[%clk 0:03:08.4]} 14.
Nxd4 {[%clk 0:02:54.3]} 14... Rc8 {[%clk 0:02:51]} 15. Bg5 {[%clk 0:02:48.3]}
15... Bd6 {[%clk 0:02:45.4]} 16. h3 {[%clk 0:02:42.9]} 16... Bh2+ {[%clk
0:02:41.5]} 17. Kh1 {[%clk 0:02:43.3]} 17... Bf4 {[%clk 0:02:39.9]} 18. Bxf6
{[%clk 0:02:12]} 18... Nxf6 {[%clk 0:02:39.3]} 19. Nf3 {[%clk 0:02:13.1]} 19...
Be5 {[%clk 0:02:26.3]} 20. Nxe5 {[%clk 0:02:12.3]} 20... Qxe5 {[%clk 0:02:26.9]}
21. Qe3 {[%clk 0:02:13.4]} 21... g5 {[%clk 0:02:20.5]} 22. Rd4 {[%clk
0:02:07.8]} 22... Rd8 {[%clk 0:02:15.7]} 23. Rad1 {[%clk 0:02:07.7]} 23... Rxd4
{[%clk 0:02:16.6]} 24. Rxd4 {[%clk 0:02:05.5]} 24... Kg7 {[%clk 0:02:13.7]} 25.
Kg1 {[%clk 0:02:05.9]} 25... Rc8 {[%clk 0:02:11.8]} 26. Bd1 {[%clk 0:02:05.6]}
26... h6 {[%clk 0:02:11.1]} 27. Be2 {[%clk 0:02:06.4]} 27... Rc7 {[%clk
0:02:07.6]} 28. Qd3 {[%clk 0:02:06.8]} 28... Qf4 {[%clk 0:01:59.2]} 29. Bf3
{[%clk 0:01:58]} 29... Qc1+ {[%clk 0:01:55.1]} 30. Nd1 {[%clk 0:01:58.9]} 30...
e5 {[%clk 0:01:52]} 31. Rd6 {[%clk 0:01:46.1]} 31... Rc6 {[%clk 0:01:44.8]} 32.
Kh2 {[%clk 0:01:34]} 32... Rxd6 {[%clk 0:01:43.9]} 33. Qxd6 {[%clk 0:01:34.5]}
33... Qf4+ {[%clk 0:01:45]} 34. Kg1 {[%clk 0:01:33.7]} 34... Bxe4 {[%clk
0:01:45.8]} 35. Bxe4 {[%clk 0:01:27.5]} 35... Nxe4 {[%clk 0:01:46.3]} 36. Qd5
{[%clk 0:01:18.9]} 36... Nf6 {[%clk 0:01:41.8]} 37. Qd6 {[%clk 0:01:16.2]} 37...
a5 {[%clk 0:01:34.9]} 38. Ne3 {[%clk 0:01:02.8]} 38... Ne4 {[%clk 0:01:19.6]}
39. Qd3 {[%clk 0:00:58.7]} 39... Qxf2+ {[%clk 0:01:18.5]} 40. Kh2 {[%clk
0:00:59.9]} 40... Qg3+ {[%clk 0:01:16.2]} 41. Kg1 {[%clk 0:01:00.7]} 41... Qe1+
{[%clk 0:01:12]} 42. Kh2 {[%clk 0:01:01.3]} 42... Qh1+ {[%clk 0:01:05.4]} 43.
Kxh1 {[%clk 0:01:02.2]} 43... Nf2+ {[%clk 0:01:06.6]} 44. Kg1 {[%clk 0:01:03.5]}
44... Nxd3 {[%clk 0:01:08.5]} 45. b3 {[%clk 0:01:04.9]} 45... b4 {[%clk
0:01:03.4]} 46. axb4 {[%clk 0:01:04.8]} 46... axb4 {[%clk 0:01:04.3]} 47. Kf1
{[%clk 0:01:04.3]} 47... Nc5 {[%clk 0:01:02.2]} 48. Nd5 {[%clk 0:01:04.9]} 48...
Nxb3 {[%clk 0:01:03.5]} 49. Nxb4 {[%clk 0:01:05.9]} 49... f5 {[%clk 0:01:02.9]}
50. Kf2 {[%clk 0:01:03.9]} 50... Nd4 {[%clk 0:01:03.3]} 51. Ke3 {[%clk
0:01:03.2]} 51... Kf6 {[%clk 0:01:01.9]} 52. Nd3 {[%clk 0:00:59.5]} 52... Ne6
{[%clk 0:01:01.3]} 53. g3 {[%clk 0:00:59.4]} 53... e4 {[%clk 0:00:58.5]} 54. Nb4
{[%clk 0:00:56.9]} 54... Ke5 {[%clk 0:00:44.8]} 55. Nc6+ {[%clk 0:00:55.6]}
55... Kd6 {[%clk 0:00:45.9]} 56. Nb4 {[%clk 0:00:52.4]} 56... Kc5 {[%clk
0:00:46.5]} 57. Nc2 {[%clk 0:00:46.6]} 57... Nc7 {[%clk 0:00:39.4]} 58. Kd2
{[%clk 0:00:26.3]} 58... Nd5 {[%clk 0:00:38.8]} 59. Ke2 {[%clk 0:00:25.9]} 59...
Kc4 {[%clk 0:00:35.6]} 60. Kd2 {[%clk 0:00:25.9]} 60... f4 {[%clk 0:00:35.3]}
61. gxf4 {[%clk 0:00:23.9]} 61... gxf4 {[%clk 0:00:36.9]} 62. Ne1 {[%clk
0:00:23]} 62... Kd4 {[%clk 0:00:28.5]} 63. Ke2 {[%clk 0:00:23]} 63... Nc3+
{[%clk 0:00:27.9]} 64. Kf2 {[%clk 0:00:23.9]} 64... Ke5 {[%clk 0:00:24.1]} 65.
Nc2 {[%clk 0:00:20.2]} 65... f3 {[%clk 0:00:24.9]} 66. Ne3 {[%clk 0:00:20.7]}
66... Kf4 {[%clk 0:00:24.5]} 67. Ng4 {[%clk 0:00:20.3]} 67... h5 {[%clk
0:00:23.3]} 68. Ne3 {[%clk 0:00:21.2]} 68... Ke5 {[%clk 0:00:21.7]} 69. Nc2
{[%clk 0:00:21.6]} 69... Nd5 {[%clk 0:00:21.6]} 70. Kg3 {[%clk 0:00:20.6]} 70...
h4+ {[%clk 0:00:21.1]} 71. Kf2 {[%clk 0:00:17.1]} 71... Kf4 {[%clk 0:00:22.3]}
72. Nd4 {[%clk 0:00:16.9]} 72... e3+ {[%clk 0:00:23.5]} 73. Ke1 {[%clk 0:00:18]}
73... Kg3 {[%clk 0:00:22.9]} 74. Kf1 {[%clk 0:00:17.4]} 74... e2+ {[%clk
0:00:20.2]} 75. Ke1 {[%clk 0:00:15.3]} 75... Kg2 {[%clk 0:00:21.5]} 76. Kd2
{[%clk 0:00:09.8]} 76... f2 {[%clk 0:00:20.1]} 77. Nxe2 {[%clk 0:00:11]} 77...
f1=Q {[%clk 0:00:21.3]} 78. Nd4 {[%clk 0:00:11.9]} 78... Qf2+ {[%clk 0:00:21.9]}
79. Kd3 {[%clk 0:00:13.1]} 79... Nf4+ {[%clk 0:00:22.9]} 80. Ke4 {[%clk
0:00:14.1]} 80... Nxh3 {[%clk 0:00:22.4]} 81. Nf5 {[%clk 0:00:15.3]} 81... Qf4+
{[%clk 0:00:22.9]} 0-1

[Event "*** Titled Tuesday Blitz"]
[Site "Chess.com"]
[Date "2018.06.05"]
[Round "3"]
[White "Beca95"]
[Black "Blackmind96"]
[Result "1-0"]
[WhiteElo "2775"]
[BlackElo "2555"]
[TimeControl "180+2"]
[EndTime "13:45:05 PDT"]
[Termination "Beca95 won by resignation"]

1. d4 {[%clk 0:03:01.9]} 1... e6 {[%clk 0:03:00.3]} 2. Nf3 {[%clk 0:03:00.5]}
2... d5 {[%clk 0:03:00.6]} 3. c4 {[%clk 0:03:01.5]} 3... Nf6 {[%clk 0:02:58.8]}
4. Nc3 {[%clk 0:03:03]} 4... c5 {[%clk 0:02:57.8]} 5. cxd5 {[%clk 0:03:03.6]}
5... Nxd5 {[%clk 0:02:59.7]} 6. e4 {[%clk 0:03:04.7]} 6... Nxc3 {[%clk
0:02:59.3]} 7. bxc3 {[%clk 0:03:06.6]} 7... cxd4 {[%clk 0:03:01]} 8. cxd4 {[%clk
0:03:08.5]} 8... Bb4+ {[%clk 0:03:02.2]} 9. Bd2 {[%clk 0:03:10.1]} 9... Bxd2+
{[%clk 0:03:04.1]} 10. Qxd2 {[%clk 0:03:11.8]} 10... O-O {[%clk 0:03:05.5]} 11.
Bc4 {[%clk 0:03:13.4]} 11... Nd7 {[%clk 0:03:05.4]} 12. O-O {[%clk 0:03:14.1]}
12... b6 {[%clk 0:03:03.8]} 13. Rfe1 {[%clk 0:03:15]} 13... Bb7 {[%clk
0:03:00.9]} 14. Rad1 {[%clk 0:03:15.9]} 14... Rc8 {[%clk 0:02:59.7]} 15. Bb3
{[%clk 0:03:17]} 15... h6 {[%clk 0:02:59.4]} 16. h4 {[%clk 0:03:17]} 16... Nf6
{[%clk 0:02:54.6]} 17. Qf4 {[%clk 0:03:17.7]} 17... Qc7 {[%clk 0:02:45.6]} 18.
Ne5 {[%clk 0:03:18.6]} 18... Nd7 {[%clk 0:02:30.1]} 19. Rc1 {[%clk 0:03:19.3]}
19... Qd6 {[%clk 0:02:28]} 20. Rxc8 {[%clk 0:03:14.9]} 20... Bxc8 {[%clk
0:02:28.4]} 21. Ng6 {[%clk 0:03:04.5]} 21... Qxf4 {[%clk 0:02:28.3]} 22. Nxf4
{[%clk 0:03:04.8]} 22... Nf6 {[%clk 0:02:19.8]} 23. e5 {[%clk 0:03:05.3]} 23...
Ne8 {[%clk 0:02:03.4]} 24. d5 {[%clk 0:03:04.2]} 24... exd5 {[%clk 0:02:03.6]}
25. Nxd5 {[%clk 0:03:05.3]} 25... Be6 {[%clk 0:02:01.8]} 26. Rc1 {[%clk
0:03:06.3]} 26... f6 {[%clk 0:01:42.5]} 27. Nxf6+ {[%clk 0:03:02.6]} 27... gxf6
{[%clk 0:01:38.5]} 28. Bxe6+ {[%clk 0:03:03.1]} 28... Kh8 {[%clk 0:01:40]} 29.
exf6 {[%clk 0:03:04.1]} 29... Rxf6 {[%clk 0:01:39]} 30. Bb3 {[%clk 0:03:03.4]}
30... Nd6 {[%clk 0:01:27.5]} 31. Rc7 {[%clk 0:03:02.4]} 31... a5 {[%clk
0:01:28.3]} 32. Bd5 {[%clk 0:02:49.6]} 32... Nf5 {[%clk 0:01:25]} 33. g3 {[%clk
0:02:48.5]} 33... Nd4 {[%clk 0:01:19.3]} 34. Kg2 {[%clk 0:02:47.9]} 34... b5
{[%clk 0:01:17.6]} 35. g4 {[%clk 0:02:46]} 35... a4 {[%clk 0:01:15.8]} 36. g5
{[%clk 0:02:46]} 36... hxg5 {[%clk 0:01:17.7]} 37. Rc8+ {[%clk 0:02:43.5]} 37...
Kg7 {[%clk 0:01:07.9]} 38. hxg5 {[%clk 0:02:23.8]} 38... Rf5 {[%clk 0:01:08.6]}
39. Rg8+ {[%clk 0:02:23.5]} 39... Kh7 {[%clk 0:01:08.9]} 40. g6+ {[%clk
0:02:22.9]} 40... Kh6 {[%clk 0:00:57]} 41. Be4 {[%clk 0:02:23.6]} 41... Rg5+
{[%clk 0:00:54.3]} 42. Kh2 {[%clk 0:02:20.6]} 42... Ne6 {[%clk 0:00:42.7]} 43.
Rh8+ {[%clk 0:02:15.6]} 43... Kg7 {[%clk 0:00:43.3]} 44. Rh7+ {[%clk 0:02:16.8]}
44... Kf6 {[%clk 0:00:44.7]} 45. Rf7+ {[%clk 0:02:09.2]} 45... Ke5 {[%clk
0:00:46.1]} 46. Bd3 {[%clk 0:02:10.1]} 46... b4 {[%clk 0:00:35.9]} 47. Rb7
{[%clk 0:01:49.6]} 47... Rh5+ {[%clk 0:00:33.9]} 48. Kg3 {[%clk 0:01:46.3]}
48... Rg5+ {[%clk 0:00:33.8]} 49. Kh4 {[%clk 0:01:46.8]} 49... Rg1 {[%clk
0:00:28.6]} 50. Rxb4 {[%clk 0:01:45.1]} 50... Rd1 {[%clk 0:00:22.2]} 51. Re4+
{[%clk 0:01:01]} 51... Kf6 {[%clk 0:00:22.5]} 52. Bc4 {[%clk 0:00:59.5]} 52...
Rh1+ {[%clk 0:00:21.4]} 53. Kg3 {[%clk 0:01:00]} 53... Ng5 {[%clk 0:00:22.6]}
54. Rf4+ {[%clk 0:01:00.3]} 54... Kxg6 {[%clk 0:00:23.3]} 55. Bd3+ {[%clk
0:00:59.7]} 55... Kg7 {[%clk 0:00:24.7]} 56. Kg4 {[%clk 0:01:00.1]} 56... Ne6
{[%clk 0:00:24.8]} 57. Rxa4 {[%clk 0:01:00]} 57... Nc5 {[%clk 0:00:23.3]} 58.
Ra7+ {[%clk 0:01:00]} 58... Kf6 {[%clk 0:00:23]} 59. Bb5 {[%clk 0:01:01.5]}
59... Rg1+ {[%clk 0:00:22.7]} 60. Kf3 {[%clk 0:01:02.4]} 60... Ke5 {[%clk
0:00:22.3]} 61. a4 {[%clk 0:01:02.5]} 61... Ne6 {[%clk 0:00:21.7]} 62. Ke3
{[%clk 0:00:58.1]} 62... Re1+ {[%clk 0:00:21.8]} 63. Kd2 {[%clk 0:00:59.3]}
63... Ra1 {[%clk 0:00:23.3]} 64. Bc4 {[%clk 0:00:59]} 64... Nc5 {[%clk
0:00:23.9]} 65. a5 {[%clk 0:00:56.2]} 65... Kd4 {[%clk 0:00:25.3]} 66. Bf7
{[%clk 0:00:54.9]} 66... Ne4+ {[%clk 0:00:26.2]} 67. Ke2 {[%clk 0:00:54.8]}
67... Nc3+ {[%clk 0:00:27.4]} 68. Kf3 {[%clk 0:00:55.8]} 68... Nb5 {[%clk
0:00:27.1]} 69. Ra8 {[%clk 0:00:50.5]} 69... Kc5 {[%clk 0:00:25.6]} 70. Kg4
{[%clk 0:00:47.6]} 70... Rg1+ {[%clk 0:00:24.8]} 71. Kf4 {[%clk 0:00:47.2]}
71... Rf1 {[%clk 0:00:24.2]} 72. f3 {[%clk 0:00:46.3]} 72... Ra1 {[%clk
0:00:23.2]} 73. Bg6 {[%clk 0:00:36.3]} 73... Ra4+ {[%clk 0:00:23.2]} 74. Be4
{[%clk 0:00:37.1]} 74... Nc7 {[%clk 0:00:23.6]} 75. Ra7 {[%clk 0:00:32.7]} 75...
Nb5 {[%clk 0:00:23.8]} 76. Ra6 {[%clk 0:00:33.8]} 76... Kb4 {[%clk 0:00:18.2]}
77. Ke5 {[%clk 0:00:34.3]} 77... Rxa5 {[%clk 0:00:17.2]} 78. Rxa5 {[%clk
0:00:35.4]} 78... Kxa5 {[%clk 0:00:19.1]} 79. f4 {[%clk 0:00:36.7]} 79... Kb6
{[%clk 0:00:16.4]} 80. Bd3 {[%clk 0:00:36.4]} 80... Nc7 {[%clk 0:00:16.3]} 81.
f5 {[%clk 0:00:37.4]} 81... Kc6 {[%clk 0:00:16.6]} 82. f6 {[%clk 0:00:37.8]}
82... Kd7 {[%clk 0:00:17.8]} 83. Bc4 {[%clk 0:00:36.2]} 83... Ke8 {[%clk
0:00:18.4]} 84. Kd6 {[%clk 0:00:36.6]} 84... Na8 {[%clk 0:00:17.3]} 85. Kc6
{[%clk 0:00:38]} 85... Kd8 {[%clk 0:00:13.6]} 86. Kb7 {[%clk 0:00:39.1]} 86...
Nc7 {[%clk 0:00:13.3]} 87. f7 {[%clk 0:00:40.5]} 87... Ne6 {[%clk 0:00:14.5]}
88. Bxe6 {[%clk 0:00:40.9]} 1-0

[Event "*** Titled Tuesday Blitz"]
[Site "Chess.com"]
[Date "2018.06.05"]
[Round "4"]
[White "ulises2013"]
[Black "mazetofonias"]
[Result "1/2-1/2"]
[WhiteElo "2387"]
[BlackElo "2533"]
[TimeControl "180+2"]
[EndTime "13:52:04 PDT"]
[Termination "Game drawn by repetition"]

1. e4 {[%clk 0:03:01.9]} 1... c5 {[%clk 0:03:01.1]} 2. g3 {[%clk 0:03:02.2]}
2... d6 {[%clk 0:03:02.5]} 3. Bg2 {[%clk 0:03:02.5]} 3... g6 {[%clk 0:03:04]} 4.
Ne2 {[%clk 0:03:04]} 4... Bg7 {[%clk 0:03:05.9]} 5. O-O {[%clk 0:03:04.5]} 5...
Nf6 {[%clk 0:03:06.7]} 6. c3 {[%clk 0:03:05.4]} 6... O-O {[%clk 0:03:08.1]} 7.
d4 {[%clk 0:03:06.4]} 7... cxd4 {[%clk 0:03:09.9]} 8. cxd4 {[%clk 0:03:08.1]}
8... Bg4 {[%clk 0:03:11.5]} 9. f3 {[%clk 0:03:08.5]} 9... Bd7 {[%clk 0:03:11.6]}
10. Nbc3 {[%clk 0:03:09.9]} 10... Nc6 {[%clk 0:03:12.4]} 11. Be3 {[%clk
0:03:10.8]} 11... Rc8 {[%clk 0:03:13.6]} 12. Rc1 {[%clk 0:03:11.2]} 12... Qa5
{[%clk 0:03:11.2]} 13. h3 {[%clk 0:03:10]} 13... Rfe8 {[%clk 0:03:11.9]} 14. Qd2
{[%clk 0:03:10.4]} 14... Qa6 {[%clk 0:03:03.3]} 15. f4 {[%clk 0:03:07.1]} 15...
Na5 {[%clk 0:03:02.8]} 16. b3 {[%clk 0:03:07.7]} 16... e5 {[%clk 0:03:01.5]} 17.
Rfd1 {[%clk 0:03:00.5]} 17... exf4 {[%clk 0:02:58.9]} 18. Nxf4 {[%clk
0:03:00.1]} 18... Nc6 {[%clk 0:02:59.3]} 19. Nfd5 {[%clk 0:02:52.6]} 19... Nxd5
{[%clk 0:02:58.3]} 20. Nxd5 {[%clk 0:02:54.5]} 20... Be6 {[%clk 0:02:57.7]} 21.
Nf4 {[%clk 0:02:52.7]} 21... Bd7 {[%clk 0:02:51.5]} 22. Nd5 {[%clk 0:02:53.1]}
22... Be6 {[%clk 0:02:45.7]} 23. Nf4 {[%clk 0:02:53.6]} 23... Bd7 {[%clk
0:02:45.1]} 24. Nd5 {[%clk 0:02:39.4]} 1/2-1/2

[Event "*** Titled Tuesday Blitz"]
[Site "Chess.com"]
[Date "2018.06.05"]
[Round "4"]
[White "Aleksandr_Kholin"]
[Black "VovenRogel"]
[Result "0-1"]
[WhiteElo "2427"]
[BlackElo "2633"]
[TimeControl "180+2"]
[EndTime "13:52:05 PDT"]
[Termination "VovenRogel won by resignation"]

1. d4 {[%clk 0:02:59.7]} 1... d5 {[%clk 0:03:00.1]} 2. c4 {[%clk 0:02:59.9]}
2... c6 {[%clk 0:03:01]} 3. Nf3 {[%clk 0:03:01.2]} 3... Nf6 {[%clk 0:03:01.7]}
4. e3 {[%clk 0:03:00.5]} 4... a6 {[%clk 0:03:00.4]} 5. Nbd2 {[%clk 0:03:00.6]}
5... e6 {[%clk 0:02:58.1]} 6. Be2 {[%clk 0:02:59.5]} 6... Nbd7 {[%clk 0:02:58]}
7. O-O {[%clk 0:03:00.9]} 7... Be7 {[%clk 0:02:58]} 8. b3 {[%clk 0:03:02.4]}
8... O-O {[%clk 0:02:58.1]} 9. Bb2 {[%clk 0:03:03.9]} 9... b6 {[%clk 0:02:51.9]}
10. Rc1 {[%clk 0:03:03.3]} 10... Bb7 {[%clk 0:02:52.5]} 11. Bd3 {[%clk
0:03:03.2]} 11... c5 {[%clk 0:02:51.6]} 12. Qe2 {[%clk 0:03:04.2]} 12... Ne4
{[%clk 0:02:45]} 13. Rfd1 {[%clk 0:03:04.2]} 13... f5 {[%clk 0:02:30.6]} 14.
cxd5 {[%clk 0:03:03.4]} 14... exd5 {[%clk 0:02:31.1]} 15. dxc5 {[%clk
0:02:56.9]} 15... bxc5 {[%clk 0:02:30.8]} 16. Nf1 {[%clk 0:02:51.7]} 16... Bf6
{[%clk 0:02:28.4]} 17. Ng3 {[%clk 0:02:41.6]} 17... Bxb2 {[%clk 0:02:27]} 18.
Qxb2 {[%clk 0:02:43.5]} 18... Qe7 {[%clk 0:02:28.4]} 19. Bc4 {[%clk 0:02:36.4]}
19... dxc4 {[%clk 0:02:23.9]} 0-1

[Event "*** Titled Tuesday Blitz"]
[Site "Chess.com"]
[Date "2018.06.05"]
[Round "4"]
[White "BrizuelaRonald"]
[Black "mishanick"]
[Result "1/2-1/2"]
[WhiteElo "2723"]
[BlackElo "2842"]
[TimeControl "180+2"]
[EndTime "13:52:53 PDT"]
[Termination "Game drawn by agreement"]

1. d4 {[%clk 0:03:01.9]} 1... Nf6 {[%clk 0:02:53.4]} 2. c4 {[%clk 0:03:03.3]}
2... e6 {[%clk 0:02:53.6]} 3. Nc3 {[%clk 0:03:04]} 3... Bb4 {[%clk 0:02:52.7]}
4. e3 {[%clk 0:03:05]} 4... O-O {[%clk 0:02:53]} 5. Ne2 {[%clk 0:03:05.2]} 5...
d5 {[%clk 0:02:54]} 6. a3 {[%clk 0:03:01.6]} 6... Bd6 {[%clk 0:02:54.4]} 7. c5
{[%clk 0:03:02.5]} 7... Be7 {[%clk 0:02:55.1]} 8. b4 {[%clk 0:03:00.7]} 8... b6
{[%clk 0:02:55.6]} 9. Nf4 {[%clk 0:03:01.4]} 9... c6 {[%clk 0:02:56.1]} 10. Be2
{[%clk 0:02:59.1]} 10... Nbd7 {[%clk 0:02:57.5]} 11. O-O {[%clk 0:02:55.9]}
11... Re8 {[%clk 0:02:58.3]} 12. Bb2 {[%clk 0:02:52.5]} 12... a5 {[%clk
0:02:56.6]} 13. f3 {[%clk 0:02:50.4]} 13... Bf8 {[%clk 0:02:57.2]} 14. Nd3
{[%clk 0:02:48.1]} 14... e5 {[%clk 0:02:52.9]} 15. dxe5 {[%clk 0:02:45.5]} 15...
Nxe5 {[%clk 0:02:52.9]} 16. Nxe5 {[%clk 0:02:44.6]} 16... Rxe5 {[%clk
0:02:52.7]} 17. Na4 {[%clk 0:02:46]} 17... Rxe3 {[%clk 0:02:44.9]} 18. Nxb6
{[%clk 0:02:46.7]} 18... Ra7 {[%clk 0:02:45.2]} 19. Nxc8 {[%clk 0:02:44.1]}
19... Qxc8 {[%clk 0:02:46.1]} 20. Bd4 {[%clk 0:02:44.9]} 20... Re8 {[%clk
0:02:42.1]} 21. b5 {[%clk 0:02:37.2]} 21... cxb5 {[%clk 0:02:24.6]} 22. Bxb5
{[%clk 0:02:37.9]} 22... Re6 {[%clk 0:02:26]} 23. c6 {[%clk 0:02:34.1]} 23...
Ra8 {[%clk 0:02:26.2]} 24. a4 {[%clk 0:02:30.9]} 24... Ne8 {[%clk 0:02:26.3]}
25. Qc2 {[%clk 0:02:26.1]} 1/2-1/2